[Event "Reykjavik Chess Congress 2020"]
[Site "Reykjavik"]
[Date "2020.01.29"]
[Round "8.6"]
[White "Heidarsson, Arnar"]
[Black "Briem, Benedikt"]
[Result "1/2-1/2"]
[ECO "D87"]
[WhiteElo "1880"]
[BlackElo "1841"]
[Annotator "NA RC"]
[PlyCount "94"]
[EventDate "2020.01.05"]
[EventType "swiss"]
[EventCountry "ISL"]
[SourceTitle "playchess.com"]
[Source "ChessBase"]
[SourceQuality "1"]
[TimeControl "40/5400+30:900+30"]

1. d4 {[%emt 0:00:00]} Nf6 {[%emt 0:00:00]} 2. c4 {[%emt 0:00:00]} g6 {[%emt 0:00:11]} 3. Nc3 {[%emt 0:00:18]} d5 {[%emt 0:00:06]} 4. cxd5 {[%emt 0:00:48]} Nxd5 {[%emt 0:00:07]} 5. e4 {[%emt 0:00:09]} Nxc3 {[%emt 0:00:04]} 6. bxc3 {[%emt 0:00:09]} Bg7 {[%emt 0:00:29]} 7. Be3 {[%emt 0:00:23]} O-O {[%emt 0:00:31]} 8. Bc4 {[%emt 0:00:18]} c5 {[%emt 0:00:14]} 9. Ne2 {[%emt 0:00:08]} cxd4 {[%emt 0:00:37]} 10. cxd4 {[%emt 0:00:58]} Qa5+ {[%emt 0:00:11]} 11. Qd2 {[%emt 0:03:03]} Nc6 {[%emt 0:00:50] D87: Exchange Grünfeld: Classical Line: Variations without ...cxd4} 12. Qxa5 {[%emt 0:02:05]} (12. Rd1 Bd7 13. O-O Qxd2 14. Rxd2 Rac8 15. Rb1 Na5 16. Bd3 b6 17. Rb4 e6 18. Bb5 Bxb5 19. Rxb5 Nc4 20. Rd3 Nd6 21. Rb2 Nxe4 {0-1 (37) Lagarde,M (2604)-Vachier Lagrave,M (2780) chess.com INT 2019}) 12... Nxa5 {[%emt 0:00:10]} 13. Bd3 {[%emt 0:02:17]} b6 {[%emt 0:00:58]} 14. O-O {[%emt 0:00:58]} Bb7 {[%emt 0:00:39]} 15. Rac1 {[%emt 0:01:09]} Rac8 $146 {[%emt 0:00:15]} ({Predecessor:} 15... Rfc8 16. d5 Rxc1 17. Rxc1 Rc8 18. f3 {½-½ (40) Adamek,Z (2125)-Hlavac,R (2153) Czechia 1999}) 16. f3 {[%emt 0:03:49]} Rfd8 {[%emt 0:01:12]} 17. Rxc8 {[%emt 0:03:32]} Rxc8 {[%emt 0:01:27]} 18. Rc1 {[%emt 0:00:17]} Rxc1+ {[%emt 0:00:40]} 19. Bxc1 $11 {[%emt 0:01:15]} Nc6 {[%emt 0:02:03]} 20. Bb2 {[%emt 0:02:10]} Nb4 {[%emt 0:04:07]} 21. Bc4 {[%emt 0:03:39]} Ba6 {[%emt 0:05:18]} 22. Bxa6 {[%emt 0:00:07]} Nxa6 {[%emt 0:00:04]} 23. Bc3 {[%emt 0:02:12]} e6 {[%emt 0:03:20]} 24. Kf2 {[%emt 0:00:13]} Kf8 {[%emt 0:00:39]} 25. Ke3 {[%emt 0:00:10]} Ke7 {[%emt 0:02:06]} 26. Kd3 {[%emt 0:00:42]} Kd6 {[%emt 0:03:16]} 27. Kc4 {[%emt 0:01:30]} Nc7 {[%emt 0:03:52]} 28. a4 {[%emt 0:02:23]} a6 {[%emt 0:02:59]} 29. Bb4+ {[%emt 0:01:54]} Kc6 {[%emt 0:00:58]} 30. g4 {[%emt 0:01:46]} b5+ {[%emt 0:01:50]} 31. axb5+ {[%emt 0:00:36]} axb5+ {[%emt 0:00:09]} 32. Kc3 {[%emt 0:01:37]} Na6 {[%emt 0:01:51]} 33. Be7 {[%emt 0:03:12]} f5 {[%emt 0:08:06]} 34. gxf5 {[%emt 0:02:01]} gxf5 {[%emt 0:00:38]} 35. Ng3 {[%emt 0:03:29]} fxe4 {[%emt 0:06:55]} 36. fxe4 {[%emt 0:00:59]} b4+ {[%emt 0:01:11]} 37. Bxb4 {[%emt 0:08:50]} Nxb4 {[%emt 0:00:10]} 38. Kxb4 {[%emt 0:00:07]} Bxd4 {[%emt 0:00:23]} 39. Kc4 {[%emt 0:00:14]} Be5 {[%emt 0:00:37]} 40. Nf5 {[%emt 0:00:00]} exf5 {[%emt 0:00:00]} 41. exf5 {[%emt 0:02:44]} h5 {[%emt 0:02:00]} 42. h3 {[%emt 0:00:18]} Bf6 {[%emt 0:00:44]} 43. Kd3 {[%emt 0:00:06]} Kd5 {[%emt 0:00:08]} 44. Ke3 {[%emt 0:00:05]} Ke5 {[%emt 0:00:08]} 45. Kf3 {[%emt 0:00:04]} Bh4 {[%emt 0:00:06]} 46. Kg2 {[%emt 0:00:05]} Bf6 {[%emt 0:00:17]} 47. Kh1 {[%emt 0:00:04]} Kxf5 {[%emt 0:00:44]} 1/2-1/2

[Event "Reykjavik Chess Congress 2020"]
[Site "Reykjavik"]
[Date "2020.02.02"]
[Round "9.6"]
[White "Mai, Aron Thor"]
[Black "Bjarnason, Saevar"]
[Result "*"]
[ECO "E91"]
[WhiteElo "2167"]
[BlackElo "2057"]
[Annotator "RC"]
[PlyCount "62"]
[EventDate "2020.01.05"]
[EventType "swiss"]
[EventCountry "ISL"]
[SourceTitle "playchess.com"]
[Source "ChessBase"]
[SourceQuality "1"]
[TimeControl "40/5400+30:900+30"]

1. Nf3 {[%emt 0:00:00]} Nf6 {[%emt 0:00:00]} 2. c4 {[%emt 0:00:00]} g6 {[%emt 0:01:01]} 3. Nc3 {[%emt 0:00:11]} Bg7 {[%emt 0:00:08]} 4. d4 {[%emt 0:00:37]} d6 {[%emt 0:00:35]} 5. e4 {[%emt 0:00:20]} O-O {[%emt 0:00:46]} 6. Be2 {[%emt 0:00:09]} c6 {[%emt 0:01:46]} 7. h3 {[%emt 0:03:34]} a6 {[%emt 0:01:47]} 8. a4 {[%emt 0:01:18]} a5 {[%emt 0:00:27]} 9. Be3 {[%emt 0:00:13]} Na6 {[%emt 0:00:21]} 10. Qd2 {[%emt 0:01:11]} Nb4 {[%emt 0:02:54]} 11. O-O {[%emt 0:00:35]} d5 {[%emt 0:13:45]} 12. cxd5 {[%emt 0:06:10]} cxd5 {[%emt 0:00:45]} 13. e5 {[%emt 0:03:44]} Ne8 {[%emt 0:00:34]} 14. Ne1 {[%emt 0:04:33]} Nc7 {[%emt 0:04:28]} 15. Nd3 {[%emt 0:02:15]} Nca6 {[%emt 0:02:35]} 16. Nf4 {[%emt 0:00:54]} Nc7 {[%emt 0:03:43]} 17. Bf3 {[%emt 0:01:12]} b6 {[%emt 0:08:15]} 18. h4 {[%emt 0:04:33]} Ba6 {[%emt 0:10:23]} 19. Rfc1 {[%emt 0:01:08]} e6 {[%emt 0:00:59]} 20. g3 {[%emt 0:00:08]} Rc8 {[%emt 0:01:18]} 21. Kg2 {[%emt 0:00:17]} f6 {[%emt 0:04:29]} 22. exf6 {[%emt 0:00:43]} Qxf6 {[%emt 0:00:21]} 23. Bg4 {[%emt 0:03:35]} Rce8 {[%emt 0:04:46]} 24. Nce2 {[%emt 0:02:09]} Qd8 {[%emt 0:02:56]} 25. Rc3 {[%emt 0:06:11]} Qd6 {[%emt 0:04:19]} 26. b3 {[%emt 0:00:44]} Re7 {[%emt 0:03:51]} 27. Rxc7 {[%emt 0:01:46]} Rxc7 {[%emt 0:01:01]} 28. Rc1 {[%emt 0:04:26]} Rxc1 {[%emt 0:04:01]} 29. Bxe6+ {[%emt 0:01:06]} Kh8 {[%emt 0:00:10]} 30. Nxc1 {[%emt 0:00:23]} Rxf4 {[%emt 0:00:30]} 31. Bxf4 {[%emt 0:01:40]} Qxe6 {[%emt 0:00:06]} *